bitfinex/quotes_ETHUSD_20250112
["timestamp","ask_amount","ask_price","bid_price","bid_amount"]
[1736644748472,2.33892,3286.5,3286.2,0.7899]
[1736644749183,0.209,3286.5,3286.2,0.7899]
[1736644749881,2.12999,3286.4,3286.1,5.335]
[1736644751984,0.209,3286.5,3286.1,5.335]
[1736644753449,0.209,3286.5,3285.9,0.7899]
[1736644755846,2.33892,3286.5,3285.9,0.7899]
[1736644757523,2.28892,3286.5,3285.9,0.7899]
[1736644761043,2.28892,3286.5,3285.6,2.42130938]
[1736644761044,0.8299,3286.3,3285.6,7.308821]
[1736644761247,0.8299,3286.3,3285.6,6.0898]
[1736644762231,3.33251838,3286.1,3285.6,6.0898]
[1736644762433,1.20228838,3286.1,3285.6,6.0898]
[1736644762639,2.13029,3286.0,3285.6,6.0898]
[1736644767363,2.13029,3286.0,3285.6,5.335]
[1736644773056,0.20321884,3286.1,3285.6,5.335]
[1736644773255,2.13014,3286.2,3285.6,5.335]
[1736644773453,3.8299,3286.3,3285.6,5.335]
[1736644773658,2.13019,3286.1,3285.6,5.335]
[1736644775763,2.13027,3286.0,3285.6,5.335]
[1736644777051,0.209,3285.9,3285.6,5.335]
[1736644777572,2.33933,3285.9,3285.6,5.335]
[1736644777741,2.573263,3285.9,3285.6,5.335]
[1736644780168,2.33933,3285.9,3285.6,5.335]
[1736644780471,2.33933,3285.9,3285.3,0.7768]
[1736644783046,0.209,3285.9,3285.3,0.7768]
[1736644783869,0.209,3285.9,3285.3,0.80723722]
[1736644784052,0.209,3286.2,3285.7,0.8225]
[1736644784236,0.209,3286.2,3285.9,0.8225]
[1736644785078,0.209,3286.4,3285.9,0.8225]
[1736644785885,0.55,3285.9,3285.7,5.335]
[1736644786181,2.1307,3285.3,3285.2,3.82082772]
[1736644786349,3.54231854,3285.3,3285.2,3.82082772]
[1736644786555,3.54231854,3285.3,3284.9,0.8225]
[1736644786735,1.41161854,3285.3,3284.9,0.8225]
[1736644786942,2.13085,3285.1,3284.6,0.7583]
[1736644790542,2.33971,3285.3,3284.6,0.7583]
[1736644793785,5.75096207,3285.3,3284.6,0.7583]
[1736644794085,2.13086,3285.1,3284.6,0.7583]
[1736644795155,2.13093,3285.0,3284.6,0.7583]
[1736644795353,2.13093,3285.0,3284.4,6.0933]
[1736644798299,5.75096207,3285.3,3284.4,6.0933]
[1736644798501,2.13104,3284.8,3284.4,6.0933]
[1736644800558,0.8193,3284.8,3284.4,5.335]
[1736644800764,2.13113,3284.7,3284.4,5.335]
[1736644801571,2.13117,3284.6,3284.1,6.1661]
[1736644801771,0.209,3284.5,3284.1,6.1661]
[1736644803124,0.209,3284.5,3284.1,5.335]
[1736644803125,0.8193,3284.4,3284.1,5.335]
[1736644803419,2.13141,3284.2,3284.1,5.335]
[1736644804020,3.36126207,3284.4,3284.1,5.335]
[1736644804168,0.5,3285.6,3284.1,5.335]
[1736644804169,0.8193,3284.7,3284.1,6.1661]
[1736644804523,2.34016,3284.6,3284.1,6.1661]
[1736644804819,2.13123,3284.5,3284.1,6.1661]
[1736644805160,2.13123,3284.5,3284.1,5.335]
[1736644805365,0.8193,3284.5,3284.1,5.335]
[1736644805566,2.13134,3284.4,3284.1,5.335]
[1736644806921,2.13135,3284.3,3284.1,5.335]
[1736644807370,0.209,3284.3,3284.1,5.335]
[1736644807717,7.44044,3285.7,3284.1,5.335]
[1736644807718,0.209,3284.5,3284.1,5.335]
[1736644807905,0.209,3284.5,3284.2,0.8311]
[1736644809035,0.209,3284.5,3284.1,5.335]
[1736644812078,2.13105,3284.8,3284.2,0.86154705]
[1736644812432,2.13105,3284.8,3284.3,0.8311]
[1736644812433,0.209,3284.8,3284.3,0.8311]
[1736644813833,2.1312,3284.6,3284.2,5.335]
[1736644814232,5.13115,3284.6,3284.2,5.335]
[1736644814571,2.13135,3284.3,3284.2,5.335]
[1736644815180,5.644485,3284.3,3284.2,5.335]
[1736644815373,6.463785,3284.3,3284.2,5.335]
[1736644815733,2.1317,3283.8,3283.5,1.25]
[1736644816065,2.3407,3283.8,3283.5,1.25]
[1736644817065,0.209,3283.8,3283.5,1.25]
[1736644824246,0.209,3283.8,3283.5,1.6743543]
[1736644824781,2.1313,3284.4,3283.6,0.7704]
[1736644824919,0.209,3284.1,3283.6,0.7704]
[1736644825360,0.209,3284.1,3283.6,6.1054]
[1736644826571,1.0184,3284.1,3283.6,6.1054]
[1736644826781,4.333377,3284.1,3283.6,5.335]
[1736644827072,6.464897,3284.1,3283.6,5.335]
[1736644829489,6.14992,3284.1,3283.6,5.335]
[1736644829786,0.209,3284.0,3283.7,0.7704]
[1736644831044,0.209,3284.0,3283.6,5.335]
[1736644838003,2.34055,3284.0,3283.6,5.335]
[1736644839586,2.13172,3283.8,3283.6,5.335]
[1736644839789,2.13174,3283.7,3283.6,5.335]
[1736644840840,1.013072,3283.8,3283.5,1.25]
[1736644840841,2.1318,3283.6,3283.5,1.25]
[1736644841133,5.9108,3283.6,3283.5,1.25]
[1736644841338,5.9108,3283.6,3283.5,1.29289936]
[1736644843235,6.4608,3283.6,3283.5,1.29289936]
[1736644843638,6.4608,3283.6,3283.5,1.25]
[1736644843949,7.95271906,3283.6,3283.5,1.25]
[1736644844295,7.40271906,3283.6,3283.5,1.25]
[1736644846524,7.61271906,3283.6,3283.5,1.25]
[1736644847638,7.40271906,3283.6,3283.5,1.25]
[1736644847804,7.61271906,3283.6,3283.5,1.25]
[1736644853912,3.21,3283.6,3283.5,1.25]
[1736644854129,4.67366207,3283.8,3283.5,1.25]
[1736644854130,2.1317,3283.8,3283.5,1.25]
[1736644854443,2.1317,3283.8,3283.5,1.29338716]
[1736644854444,0.21,3283.6,3283.5,1.29338716]
[1736644861851,0.21,3283.6,3283.5,1.25]
[1736644862249,0.21,3283.6,3283.5,1.29365087]
[1736644866945,2.1315,3284.1,3283.5,1.29365087]
[1736644867293,0.209,3284.0,3283.6,0.8007]
[1736644867502,0.209,3284.0,3283.7,0.04330626]
[1736644871317,2.34056,3284.0,3283.7,0.04330626]
[1736644871759,2.34056,3284.0,3283.5,6.585]
[1736644872060,2.34056,3284.0,3283.8,0.04319659]
[1736644872237,2.34056,3284.0,3283.5,6.585]
[1736644872604,2.34056,3284.0,3283.6,0.04341594]
[1736644876032,0.209,3284.0,3283.6,0.04341594]
[1736644876267,2.13172,3283.8,3283.6,0.04341594]
[1736644876568,0.8042,3283.9,3283.5,6.585]
[1736644876726,2.13174,3283.7,3283.5,6.585]
[1736644877627,2.1318,3283.6,3283.5,6.585]
[1736644877830,2.64498,3283.6,3283.5,6.585]
[1736644878050,2.1318,3283.6,3283.5,6.585]
[1736644879390,2.1318,3283.6,3283.5,1.25]
[1736644882543,0.8042,3284.2,3283.6,0.7958]
[1736644882745,2.93553,3284.4,3283.6,0.7958]
[1736644883077,0.209,3284.3,3283.7,0.7958]
[1736644883862,3.54427004,3284.3,3283.7,0.7958]
[1736644885300,2.34036,3284.3,3283.7,0.7958]
[1736644889118,0.209,3284.3,3283.7,0.7958]
[1736644889991,2.34035,3284.3,3283.7,0.7958]
[1736644890236,2.574385,3284.3,3283.7,0.7958]
[1736644891009,2.13143,3284.2,3283.8,0.04260326]
[1736644891219,0.8042,3284.2,3283.8,5.37760326]
[1736644891543,2.13148,3284.1,3283.9,0.0424936]
[1736644900450,0.8042,3284.2,3283.9,0.0424936]
[1736644901282,2.34036,3284.3,3284.0,0.8206]
[1736644901477,2.34036,3284.3,3284.1,0.04227429]
[1736644901786,0.209,3284.2,3284.1,0.04227429]
[1736644902525,5.574446,3284.2,3284.1,0.04227429]
[1736644902732,5.574446,3284.2,3283.8,5.335]
[1736644902943,5.34041,3284.2,3283.9,0.0424936]
[1736644908134,2.13148,3284.1,3283.9,0.0424936]
[1736644913943,3.209,3284.2,3283.9,0.0424936]
[1736644914340,5.34042,3284.2,3283.9,0.0424936]
[1736644916016,2.131,3284.9,3284.0,0.8206]
[1736644916348,2.13114,3284.7,3284.1,0.07283471]
[1736644916514,0.209,3284.8,3284.2,0.8206]
[1736644916714,0.209,3284.8,3284.3,5.37716709]
[1736644917346,3.209,3284.8,3284.3,5.37716709]
[1736644918159,2.13085,3285.1,3284.4,0.7903]
[1736644918355,0.209,3285.0,3284.6,0.7903]
[1736644918860,0.209,3285.0,3284.7,0.04150452]
[1736644919005,2.01272244,3285.4,3284.7,0.04150452]
[1736644919364,2.3397,3285.3,3284.7,0.04150452]
[1736644919655,2.3397,3285.3,3284.7,0.07194635]
[1736644919819,2.3397,3285.3,3284.8,0.7903]
[1736644920362,2.3397,3285.3,3284.9,0.04128532]
[1736644922025,0.209,3285.3,3284.9,0.04128532]
[1736644922222,2.13077,3285.2,3284.9,0.04128532]
[1736644922425,2.13077,3285.2,3284.8,0.7903]
[1736644922844,2.13077,3285.2,3284.9,0.04128532]
[1736644923299,0.209,3285.2,3284.8,0.7903]
[1736644923929,0.209,3285.2,3284.9,0.04068562]
[1736644929445,2.13065,3285.4,3284.9,0.04068562]
[1736644929643,0.209,3285.2,3284.9,0.04068562]
[1736644933621,2.33976,3285.2,3284.9,0.04068562]
[1736644936182,0.209,3285.2,3284.9,0.04068562]
[1736644938192,2.93912,3285.6,3285.0,0.03043984]
[1736644938428,0.209,3285.5,3285.0,0.8136]
[1736644938556,0.209,3285.5,3285.1,0.04989122]
[1736644940399,3.7694,3285.9,3285.1,0.04989122]
[1736644940549,0.209,3285.5,3285.1,0.04989122]
[1736644941372,0.209,3285.5,3285.2,0.8136]
[1736644941790,1.212349,3285.5,3284.5,0.8136]
[1736644941991,2.13115,3284.6,3284.2,0.8136]
[1736644942193,2.34019,3284.6,3284.2,0.8136]
[1736644943424,0.209,3284.6,3284.2,0.8136]
[1736644943549,0.209,3284.6,3283.7,8.8]
[1736644943550,2.13137,3284.3,3283.7,0.8136]
[1736644943868,2.13153,3284.1,3283.7,0.8136]
[1736644944900,2.13128,3284.4,3283.7,0.8136]
[1736644945055,0.982528,3284.3,3283.5,2.0636]
[1736644945256,2.54175786,3284.2,3283.5,2.0636]
[1736644946631,2.13155,3284.0,3283.5,2.0636]
[1736644947002,2.54175786,3284.2,3283.5,2.0636]
[1736644947204,2.13177,3283.7,3283.5,2.0636]
[1736644947418,2.1318,3283.6,3283.5,1.25]
[1736644947619,4.67355786,3283.6,3283.5,1.25]
[1736644948399,7.67355786,3283.6,3283.5,1.25]
[1736644948639,8.53875365,3283.6,3283.5,1.25]
[1736644954509,15.96635365,3283.6,3283.5,1.2926292]
[1736644954711,0.7866,3283.4,3282.9,0.16516]
[1736644955038,8.46054786,3283.0,3282.9,0.16516]
[1736644955243,14.76054786,3283.0,3282.9,0.16516]
[1736644955398,16.23660265,3283.0,3282.9,0.21054649]
[1736644955916,16.23660265,3283.0,3282.9,0.16516]
[1736644957112,16.23660265,3283.0,3282.7,0.02]
[1736644957113,2.94062,3282.8,3282.7,0.02]
[1736644957312,12.58162,3282.8,3282.7,0.02]
[1736644957522,14.72985805,3282.8,3282.7,0.02]
[1736644958472,2.54175786,3281.9,3281.3,0.7992]
[1736644958621,0.209,3281.8,3281.4,0.03047047]
[1736644959002,6.091,3281.9,3281.5,0.04238466]
[1736644959201,0.209,3281.8,3281.5,0.04238466]
[1736644959644,0.209,3281.8,3281.3,0.7992]
[1736644959939,0.209,3281.8,3281.6,0.04227484]
[1736644960242,0.209,3281.8,3281.7,0.04216503]
[1736644960607,0.209,3281.8,3281.3,0.7992]
[1736644960812,0.209,3281.8,3281.7,0.04216503]
[1736644961038,0.209,3281.8,3281.4,0.03047088]
[1736644961227,0.209,3281.8,3281.7,0.04216503]
[1736644961431,0.209,3281.8,3281.3,0.7992]
[1736644961662,0.209,3281.8,3281.7,0.04216503]
[1736644961855,0.209,3281.8,3281.3,0.7992]
[1736644962030,0.209,3281.8,3281.7,0.04216503]
[1736644962234,0.209,3281.8,3281.3,0.7992]
[1736644962562,0.209,3281.8,3281.7,0.04216503]
[1736644962729,0.209,3281.8,3281.3,0.7992]
[1736644962926,0.209,3281.8,3281.7,0.04216503]
[1736644963147,0.209,3281.8,3281.5,0.7992]
[1736644963311,0.209,3281.8,3281.7,0.04216503]
[1736644963513,0.209,3281.8,3281.6,0.04227484]
[1736644963711,0.209,3281.8,3281.7,0.04216503]
[1736644964107,0.209,3281.8,3281.5,0.82967065]
[1736644964342,6.091,3281.9,3281.7,0.04349753]
[1736644964547,6.091,3281.9,3281.7,0.7992]
[1736644964779,6.091,3281.9,3281.8,0.04338773]
[1736644965066,6.091,3281.9,3281.7,0.7992]
[1736644965265,6.091,3281.9,3281.8,0.04338773]
[1736644965617,6.091,3281.9,3281.7,0.7992]
[1736644966154,6.091,3281.9,3281.8,0.04338773]
[1736644966365,6.091,3281.9,3281.7,0.7992]
[1736644966713,6.091,3281.9,3281.8,0.04338773]
[1736644967171,6.091,3281.9,3281.7,0.7992]
[1736644967532,6.091,3281.9,3281.8,0.04338773]
[1736644968054,6.091,3281.9,3281.7,0.7992]
[1736644968466,6.091,3281.9,3281.8,0.04338773]
[1736644968978,6.091,3281.9,3281.7,0.7992]
[1736644969343,6.091,3281.9,3281.8,0.04338773]
[1736644969668,6.091,3281.9,3281.7,0.7992]
[1736644969965,6.091,3281.9,3281.8,0.04338773]
[1736644970169,6.091,3281.9,3281.7,0.7992]
[1736644970329,6.091,3281.9,3281.8,0.04338773]
[1736644970529,6.091,3281.9,3281.7,0.7992]
[1736644970726,6.091,3281.9,3281.8,0.03769512]
[1736644970930,6.091,3281.9,3281.7,0.7992]
[1736644971232,6.091,3281.9,3281.8,0.03769512]
[1736644971543,6.091,3281.9,3281.5,0.7992]
[1736644971925,6.091,3281.9,3281.6,0.03787813]
[1736644979394,6.091,3281.9,3281.7,0.03764913]
[1736644979686,6.3,3281.9,3281.3,6.1553]
[1736644979881,6.3,3281.9,3281.8,0.03755762]
[1736644980162,6.3,3281.9,3281.3,6.1553]
[1736644980680,6.3,3281.9,3281.4,0.06839394]
[1736644980882,6.3,3281.9,3281.4,0.03792367]
[1736644981183,6.3,3281.9,3281.4,5.37292367]
[1736644988197,7.1121,3281.9,3281.4,5.37292367]
[1736644989906,6.091,3281.9,3281.4,5.37292367]
[1736644990151,6.301,3281.9,3281.4,5.37292367]
[1736644990651,6.301,3281.9,3281.5,0.03047034]
[1736644991204,6.301,3281.9,3281.6,0.03785063]
[1736644991561,6.301,3281.9,3281.4,5.335]
[1736644992066,6.301,3281.9,3281.5,0.03791465]
[1736644992763,7.144379,3281.9,3281.5,0.03791465]
[1736644992919,2.13306,3281.7,3281.5,0.03791465]
[1736644993761,3.8121,3281.8,3281.5,0.03791465]
[1736644994126,0.8121,3281.8,3281.5,0.03791465]
[1736644994346,9.277309,3281.9,3281.5,0.03791465]
[1736644994734,6.301,3281.9,3281.5,0.03791465]
[1736644994967,6.301,3281.9,3281.6,0.8203]
[1736644995282,6.091,3281.9,3281.7,0.03786913]
[1736644995447,0.21,3281.8,3281.7,0.03786913]
[1736644996864,6.301,3281.9,3281.7,0.03786913]
[1736644997664,6.091,3281.9,3281.7,0.03786913]
[1736644999388,6.091,3281.9,3281.8,2.19343904]
[1736644999537,6.091,3281.9,3281.8,3.22256986]
[1736644999890,6.091,3281.9,3281.8,3.26746082]
[1736645000036,6.091,3281.9,3281.8,3.23699178]
[1736645000954,6.091,3281.9,3281.8,7.07393034]
[1736645002185,6.091,3281.9,3281.8,3.23699178]
[1736645005657,6.091,3281.9,3281.8,3.26745834]
[1736645006306,6.091,3281.9,3281.8,3.81745834]
[1736645006504,6.091,3281.9,3281.8,10.62393034]
[1736645007006,6.091,3281.9,3281.8,6.78699178]
[1736645008746,6.091,3281.9,3281.8,10.61993153]
[1736645009707,6.091,3281.9,3281.8,6.78699178]
[1736645010095,6.091,3281.9,3281.8,10.61993153]
[1736645011008,6.091,3281.9,3281.8,6.78699178]
[1736645011509,6.091,3281.9,3281.8,10.61993153]
[1736645013526,6.091,3281.9,3281.8,6.78699178]
[1736645015325,6.091,3281.9,3281.8,7.99169897]
[1736645019018,4.95853816,3281.9,3281.8,9.19640616]
[1736645019172,0.7929,3283.2,3282.8,2.13232]
[1736645019367,0.7929,3283.2,3282.9,0.03045735]
[1736645019609,0.7929,3283.2,3282.9,0.07298635]
[1736645019812,0.7929,3283.2,3282.9,0.0729861]
[1736645020018,0.7929,3283.2,3282.9,5.4079861]
[1736645020219,0.7929,3283.2,3282.9,5.377529]
[1736645023873,0.7929,3283.2,3283.0,0.03045888]
[1736645024237,0.7929,3283.2,3283.1,0.04182814]
[1736645024775,0.7929,3283.2,3282.9,5.335]
[1736645024962,0.7929,3283.2,3283.1,0.04182814]
[1736645025164,0.7929,3283.2,3283.0,0.04193785]
[1736645025365,0.7929,3283.2,3283.1,0.04182814]
[1736645025765,0.7929,3283.2,3282.9,5.335]
[1736645026079,0.7929,3283.2,3283.0,0.04193785]
[1736645026377,0.7929,3283.2,3283.0,0.0723945]
[1736645027082,0.7929,3283.2,3283.0,0.04193785]
[1736645027678,0.7929,3283.7,3283.2,2.13205]
[1736645027879,0.7929,3283.7,3283.3,0.0075]
[1736645028091,0.7929,3283.7,3283.3,2.21901197]
[1736645028244,0.7929,3283.7,3283.3,2.14697]
[1736645028446,0.7929,3283.7,3283.4,0.04147925]
[1736645028657,2.421508,3284.2,3283.4,0.04147925]
[1736645028658,1.0029,3284.0,3283.5,5.36545183]
[1736645028887,0.7929,3284.0,3283.6,0.015]
[1736645029072,0.21,3284.3,3283.6,2.22287276]
[1736645029239,0.21,3284.4,3283.6,2.22287276]
[1736645029445,0.21,3284.4,3283.8,5.335]
[1736645029778,0.523411,3284.4,3283.8,5.335]
[1736645029980,0.21,3284.4,3283.9,0.04524429]
[1736645031684,0.21,3284.4,3284.0,0.03044806]
[1736645031882,0.21,3284.4,3284.0,0.07557051]
[1736645032056,0.21,3284.4,3284.0,0.04512245]
[1736645032258,0.21,3284.4,3283.8,5.335]
[1736645032459,0.21,3284.4,3284.1,0.04500062]
[1736645032684,0.21,3284.4,3283.8,5.335]
[1736645032846,0.21,3284.4,3284.2,0.0448788]
[1736645033048,0.21,3284.4,3283.8,5.335]
[1736645033397,0.21,3284.4,3284.3,0.04475698]
[1736645033693,0.7705,3284.3,3283.8,5.335]
[1736645034097,2.13148,3284.1,3283.8,5.335]
[1736645034303,0.7705,3284.0,3283.8,5.335]
[1736645034948,0.7705,3284.0,3283.3,5.335]
[1736645038360,2.13148,3284.1,3283.3,5.335]
[1736645038361,0.8177,3283.8,3283.3,5.335]
[1736645038559,0.8177,3283.7,3282.6,0.8333]
[1736645038781,0.8177,3283.4,3282.6,0.8333]
[1736645039095,0.8177,3283.4,3282.7,0.03]
[1736645039559,0.8177,3283.4,3282.7,2.16237]
[1736645039763,0.8177,3283.4,3282.9,0.0225]
[1736645040767,0.8177,3283.4,3282.8,0.0225]
[1736645040968,0.8177,3283.4,3283.0,0.04112692]
[1736645041167,0.8177,3283.4,3282.9,0.04123665]
[1736645041400,0.8177,3283.4,3283.1,0.04101721]
[1736645041604,0.8177,3283.4,3283.0,0.04112692]
[1736645041905,0.8177,3283.4,3283.1,0.04101721]
[1736645042313,0.8177,3283.4,3282.8,0.0225]
[1736645042496,0.8177,3283.4,3282.7,2.13987]
[1736645042497,0.8177,3283.4,3283.2,0.0409075]
[1736645042815,0.21,3283.6,3282.3,5.335]
[1736645042816,0.8177,3283.1,3282.3,5.335]
[1736645044490,0.8177,3283.1,3282.4,0.03046121]
[1736645046917,0.8177,3283.1,3282.4,5.36546121]
[1736645047319,2.94984,3283.1,3282.4,5.36546121]
[1736645047526,0.7992,3283.0,3282.4,5.335]
[1736645047727,0.7992,3283.0,3282.5,0.03046123]
[1736645048392,0.7992,3283.0,3282.4,5.335]
[1736645049208,0.7992,3283.0,3282.3,5.335]
[1736645049209,2.425343,3283.0,3282.3,5.335]
[1736645049390,0.7992,3282.9,3282.3,5.335]
[1736645049588,0.7992,3282.7,3282.3,5.335]
[1736645050222,0.7992,3282.7,3281.7,3.35636722]
[1736645050579,0.7992,3282.7,3281.8,0.0225]
[1736645050819,0.7992,3282.7,3281.8,0.015]
[1736645051129,0.212,3282.8,3281.6,2.13307]
[1736645051130,0.7992,3282.5,3281.6,2.13307]
[1736645051374,0.7992,3282.5,3281.7,0.0225]
[1736645051529,0.7992,3282.5,3281.7,2.15553]
[1736645052726,0.7992,3282.3,3281.4,0.8121]
[1736645052911,0.7992,3282.3,3281.5,0.03046913]
[1736645054829,0.7992,3282.3,3281.5,0.0075]
[1736645055025,0.7992,3282.3,3281.5,0.03796914]
[1736645055546,0.7992,3282.3,3281.5,0.0075]
[1736645055905,0.293179,3282.3,3281.6,5.37863283]
[1736645056131,0.7992,3282.2,3281.6,5.37863283]
[1736645057406,0.7992,3282.2,3281.6,5.40910198]
[1736645059752,2.13272,3282.2,3281.6,5.37863283]
[1736645060063,0.7575,3282.0,3281.6,5.37863283]
[1736645060276,0.212,3281.9,3281.6,5.37863283]
[1736645060427,0.7575,3281.8,3281.6,5.37863283]
[1736645060635,6.8517,3281.8,3281.6,5.37863283]
[1736645064826,6.8517,3281.8,3281.6,0.04363283]
[1736645065196,6.8517,3281.8,3281.3,0.03047118]
[1736645065401,6.8517,3281.8,3281.7,0.04062183]
[1736645065691,6.8517,3281.8,3281.2,7.4683]
[1736645065862,6.8517,3281.8,3281.7,0.04062183]
[1736645066199,6.8517,3281.8,3281.2,7.4683]
[1736645066426,6.8517,3281.8,3281.7,0.04062183]
[1736645066585,6.8517,3281.8,3281.2,7.4683]
[1736645066763,6.8517,3281.8,3281.7,0.04062183]
[1736645067093,6.8517,3281.8,3281.2,5.335]
[1736645067294,6.8517,3281.8,3281.7,0.04062183]
[1736645067961,7.55807,3281.8,3281.2,5.335]
[1736645068145,6.8517,3281.8,3281.7,0.04062183]
[1736645068348,6.8517,3281.8,3281.2,5.335]
[1736645068550,6.8517,3281.8,3281.7,0.03723668]
[1736645068551,9.0111,3281.8,3281.7,0.03723668]
[1736645068803,0.7839,3281.7,3281.2,5.335]
[1736645069007,6.8781,3281.7,3281.2,5.335]
[1736645070812,6.8781,3281.7,3281.3,0.03760274]
[1736645071873,6.8781,3281.7,3281.3,0.0680761]
[1736645072105,6.0942,3281.7,3281.3,0.0680761]
[1736645072258,6.0942,3281.7,3281.3,0.8229761]
[1736645072884,6.0942,3281.7,3281.3,2.9562661]
[1736645073096,6.0942,3281.7,3281.3,2.2013661]
[1736645073301,6.0942,3281.7,3281.3,2.17089274]
[1736645073687,6.0942,3281.7,3281.3,2.20136439]
[1736645073913,6.0942,3281.7,3281.3,0.06807439]
[1736645074113,6.0942,3281.7,3281.3,0.03760274]
[1736645075563,6.0942,3281.7,3281.4,0.015]
[1736645075763,6.0942,3281.7,3281.5,0.03780465]
[1736645076765,6.0942,3281.7,3281.5,5.37280465]
[1736645076965,6.0942,3281.7,3281.6,0.53878047]
[1736645077165,6.0942,3281.7,3281.6,0.03769114]
[1736645079284,6.875,3281.7,3281.6,0.03769114]
[1736645080642,6.0942,3281.7,3281.6,0.03769114]
[1736645081685,6.0942,3281.7,3281.6,0.08316235]
[1736645082403,6.0942,3281.7,3281.6,0.05269114]
[1736645083538,6.0942,3281.7,3281.6,0.03769114]
[1736645084036,6.0942,3281.7,3281.6,2.19329114]
[1736645084241,6.0942,3281.7,3281.6,2.95659114]
[1736645084742,6.0942,3281.7,3281.6,2.98706042]
[1736645085455,6.0942,3281.7,3281.6,2.99456042]
[1736645085622,6.0942,3281.7,3281.6,3.54456042]
[1736645085802,6.0942,3281.7,3281.6,3.51409114]
[1736645086720,6.0942,3281.7,3281.6,3.54455858]
[1736645087223,6.0942,3281.7,3281.6,3.51409114]
[1736645089251,6.0942,3281.7,3281.6,3.5445586]
[1736645089455,6.0942,3281.7,3281.6,3.51409114]
[1736645091255,6.0942,3281.7,3281.6,3.54455863]
[1736645092961,6.0942,3281.7,3281.6,3.51409114]
[1736645094706,6.0942,3281.7,3281.6,3.54455867]
[1736645094927,6.0942,3281.7,3281.6,3.51409114]
[1736645095414,6.0942,3281.7,3281.6,3.54455868]
[1736645095613,6.0942,3281.7,3281.6,7.37749843]
[1736645095813,6.0942,3281.7,3281.6,7.34703089]
[1736645096255,6.0942,3281.7,3281.6,3.51409114]
[1736645098040,6.0942,3281.7,3281.6,3.54455873]
[1736645099856,6.0942,3281.7,3281.6,6.54455873]
[1736645100174,6.0942,3281.7,3281.6,6.51409114]
[1736645100386,6.0942,3281.7,3281.6,10.34703089]
[1736645100766,6.0942,3281.7,3281.6,6.51409114]
[1736645101388,0.7808,3282.6,3282.4,5.335]
[1736645101615,0.7808,3282.6,3282.4,5.36546218]
[1736645101911,0.7808,3282.6,3282.5,0.04312625]
[1736645106369,0.7808,3282.6,3282.5,0.58548509]
[1736645106785,0.7808,3282.6,3282.5,5.92048509]
[1736645107597,2.13186,3283.6,3282.5,5.92048509]
[1736645107598,0.7838,3283.0,3282.8,2.14729]
[1736645107756,0.21,3283.5,3282.9,6.57012205]
[1736645107963,0.7838,3283.3,3282.9,6.58202242]
[1736645108298,0.7838,3283.3,3282.9,5.37735749]
[1736645109089,0.7838,3283.3,3283.0,0.03045681]
[1736645109399,0.7838,3283.3,3283.1,0.04192703]
[1736645110103,0.7838,3283.3,3282.9,5.335]
[1736645110308,0.7838,3283.3,3283.2,0.0417382]
[1736645110491,0.7838,3283.3,3282.9,5.335]
[1736645110659,0.7838,3283.3,3283.2,0.0417382]
[1736645111209,0.7838,3283.3,3282.9,5.335]
[1736645111554,0.7838,3283.3,3283.2,0.04637577]
[1736645111703,0.7838,3283.3,3282.9,5.335]
[1736645111893,0.7838,3283.3,3283.0,0.04661958]
[1736645112403,0.7838,3283.3,3283.0,0.07707601]
[1736645112606,0.7838,3283.3,3283.0,0.04661958]
[1736645112913,0.7838,3283.3,3283.0,5.38161958]
[1736645114512,0.7838,3283.3,3283.1,0.37973603]
[1736645114880,0.7838,3283.3,3283.2,0.04175798]
[1736645115335,0.209,3283.6,3283.2,0.04175798]
[1736645115547,0.7838,3283.5,3283.2,0.04175798]
[1736645115843,0.7838,3283.5,3283.0,5.36545608]
[1736645116006,0.7838,3283.5,3283.3,0.04164827]
[1736645116207,0.7838,3283.5,3283.0,5.36545608]
[1736645116420,0.7838,3283.5,3283.4,0.04153858]
[1736645116624,0.7838,3283.5,3283.0,5.335]
[1736645116830,0.7838,3283.5,3283.4,0.04615398]
[1736645117029,0.7838,3283.5,3283.0,5.3654561]
[1736645117509,0.7838,3283.5,3283.1,0.04651965]
[1736645118750,0.7838,3283.5,3283.1,5.38151965]
[1736645119269,0.8036,3283.4,3283.1,5.38151965]
[1736645119424,0.8036,3283.5,3283.1,5.38151965]
[1736645119752,5.93566,3283.2,3283.1,5.38151965]
[1736645122155,5.93566,3283.2,3283.1,0.04651965]
[1736645122355,5.13206,3283.2,3281.8,2.93424]
[1736645122512,0.8036,3282.9,3281.9,0.323424]
[1736645122888,1.0126,3282.8,3281.9,0.323424]
[1736645123351,2.13247,3282.6,3281.6,2.13308]
[1736645123553,2.13254,3282.5,3281.5,3.34535475]
[1736645123753,0.8036,3282.4,3281.5,3.34535475]
[1736645124140,0.8036,3282.4,3281.5,0.8013]
[1736645124458,0.8036,3282.4,3281.2,5.47869475]
[1736645124755,2.75305475,3282.8,3281.2,5.47869475]
[1736645124756,0.8036,3282.1,3281.2,5.47869475]
[1736645124959,0.8036,3282.1,3281.3,0.0075]
[1736645125155,0.21,3282.0,3281.3,0.0075]
[1736645126216,0.8036,3281.9,3281.3,0.0075]
[1736645126416,0.8036,3281.9,3281.3,0.03797073]
[1736645129245,0.8036,3281.9,3281.3,2.17126073]
[1736645129441,0.8036,3281.9,3281.5,0.0075]
[1736645130379,0.8036,3281.9,3281.3,0.03]
[1736645130519,0.8036,3281.9,3281.2,5.47869475]
[1736645130858,0.8036,3281.9,3281.3,0.07531108]